Cogmind - Beta 16 @@@ ROGUE MODE // 2025.12.22 @ 22:17:45 Player: PE-P51 Result: Self-destructed Performance ------------- Evolutions (5) 2500 Regions Visited (15) 3000 Robots Destroyed (190) 950 Value Destroyed (4858) 4858 Prototype IDs (56) 1120 Alien Tech Used (1) 200 Bonus (701) 701 TOTAL SCORE: 13329 Bonus ------- High Alert Combat Kills 415 Aligned with FarCom 300 Met Zhirov 300 Friendly Fire -314 Cogmind --------- Core Integrity 625/1000 Matter 234/300 Energy 340/340 System Corruption 16% Temperature Cool (0) Movement Core (450) Ox8 Location -5/Zhirov Parts ------- > --- POWER (2) -------- Heavy Antimatter Reactor > --- PROPULSION (6) --- Cooled Nuclear Pulse Thruster Cooled Nuclear Pulse Thruster Cooled Nuclear Pulse Thruster > --- UTILITY (7) ------ Advanced Cooling System Advanced Signal Interpreter Improved Hacking Suite Advanced Hacking Suite Improved System Shield > --- WEAPON (2) ------- Improved Remote Datajack Plasma Sword > --- INVENTORY (5) ---- F-cell Engine Phase Shifter Makeshift Hacking Suite Transdimensional Reconstructor KE Penetrator Peak State ------------ > --- POWER ------------ F-cell Engine Light Quantum Reactor > --- PROPULSION ------- Improved Cesium-ion Thruster Cooled Cesium-ion Thruster Cooled Cesium-ion Thruster Cooled Cesium-ion Thruster Cooled Cesium-ion Thruster Cooled Nuclear Pulse Thruster > --- UTILITY ---------- Advanced Cooling System Advanced Weight Redist. System Advanced Sensor Array Advanced Signal Interpreter Modified TNC Improved Hacking Suite Improved System Shield > --- WEAPON ----------- Guided Plasma Cannon Plasma Sword > --- INVENTORY -------- AWS/Thermal Guided EMP Blaster Improved Remote Datajack [Rating: 104] Favorites ----------- Power Ion Engine Engine Ion Engine Power Core Micro Nuclear Core Reactor Cold Fusion Reactor Propulsion Cooled Cesium-ion Thruster Treads Light Treads Leg Aluminum Leg Flight Unit Cooled Cesium-ion Thruster Utility Modified TNC Device Heat Sink Storage Huge Storage Unit Processor Modified TNC Hackware Improved Hacking Suite Protection Hardened Light Armor Plating Weapon Beam Cannon Energy Gun Small Laser Energy Cannon Beam Cannon Ballistic Gun Battle Rifle Launcher Mini Grenade Launcher Special Weapon Remote Datajack Impact Weapon Power Maul Slashing Weapon Power Sword Piercing Weapon Spear Special Melee Weapon Datajack Build | -11 -10 -10 -10 -9 -8 -7 -7 -7 -6 -5 -5 -5 -5 -5 -5 ------- Run | Yrd Mat Min Exi Min Mat Fac Was Fac Fac Fac Was Fac Upp Upp Zhi Slots Evolved 10 | . . . . . 4 2 . . 2 2 . . . . . Power 1 | . . . . . . . . . . 1 . . . . . Propulsion 4 | . . . . . 2 . . . 2 . . . . . . Utility 5 | . . . . . 2 2 . . . 1 . . . . . Weapon . | . . . . . . . . . . . . . . . . Parts Attached 146 | . 18 . . 2 21 20 6 17 26 5 . 18 1 8 4 Power 25 | . 1 . . . 2 3 1 4 5 2 . 4 . 2 1 Engine 14 | . 1 . . . 2 1 1 2 4 1 . 2 . . . Core 7 | . . . . . . 2 . 2 . 1 . . . 2 . Reactor 4 | . . . . . . . . . 1 . . 2 . . 1 Propulsion 42 | . 7 . . . 7 7 . 4 9 1 . 6 . 1 . Treads 9 | . 2 . . . 7 . . . . . . . . . . Leg 5 | . 5 . . . . . . . . . . . . . . Wheel . | . . . . . . . . . . . . . . . . Hover . | . . . . . . . . . . . . . . . . Flight 28 | . . . . . . 7 . 4 9 1 . 6 . 1 . Utility 49 | . 6 . . . 5 7 2 7 8 2 . 6 1 3 2 Device 25 | . 2 . . . 4 3 1 3 5 1 . 4 . 2 . Storage 4 | . 4 . . . . . . . . . . . . . . Processor 7 | . . . . . 1 2 . 2 1 1 . . . . . Hackware 9 | . . . . . . 1 . 2 2 . . 2 . 1 1 Protection 4 | . . . . . . 1 1 . . . . . 1 . 1 Artifact . | . . . . . . . . . . . . . . . . Weapon 30 | . 4 . . 2 7 3 3 2 4 . . 2 . 2 1 Energy Gun 7 | . 2 . . . 3 1 1 . . . . . . . . Energy Cannon 6 | . 2 . . 1 2 . 1 . . . . . . . . Ballistic Gun 5 | . . . . . 1 . 1 . . . . 1 . 2 . Ballistic Cannon . | . . . . . . . . . . . . . . . . Launcher 3 | . . . . 1 1 . . . 1 . . . . . . Special Weapon 3 | . . . . . . . . . 2 . . . . . 1 Impact Weapon 1 | . . . . . . 1 . . . . . . . . . Slashing Weapon 3 | . . . . . . . . 1 1 . . 1 . . . Piercing Weapon 1 | . . . . . . . . 1 . . . . . . . Special Melee Weapon 1 | . . . . . . 1 . . . . . . . . . Unidentified Prototypes 21 | . . . . . 2 3 2 1 4 1 . 5 . . 3 Corrupted Parts 1 | . . . . . . . . . . . . . . 1 . System Corruption 5 | . . . . . . . . . . . . . . 5 . Parts Lost 43 | . 1 . . . 12 4 . 2 10 . 1 5 1 1 6 Power 9 | . 1 . . . 2 1 . 1 2 . . 1 . . 1 Propulsion 14 | . . . . . 3 1 . . 4 . 1 1 1 . 3 Utility 15 | . . . . . 4 2 . 1 3 . . 2 . 1 2 Weapon 5 | . . . . . 3 . . . 1 . . 1 . . . Highest Loss Streak 8 | . 1 . . . 8 2 . 1 5 . 1 4 1 1 6 To Critical Strikes . | . . . . . . . . . . . . . . . . Average Backups 9 | . 14 16 17 19 22 5 3 3 3 2 3 2 3 3 4 Power . | . 1 1 1 1 1 . . . . . . . . . . Propulsion 2 | . 5 4 4 4 5 1 . . . . . . . . . Utility 2 | . 2 3 3 4 5 1 1 . . . . . . 1 2 Weapon 4 | . 4 7 7 9 8 2 2 3 3 1 2 2 2 1 . Tool/Special . | . . . . . . . . . . . . . . . . Unused Backups 27 | . 8 . . . 6 8 1 1 . . . 1 . . 2 Power 1 | . 1 . . . . . . . . . . . . . . Propulsion 12 | . 4 . . . 4 3 . . . . . 1 . . . Utility 5 | . 1 . . . . 1 1 1 . . . . . . 1 Weapon 8 | . 2 . . . 2 4 . . . . . . . . . Tool/Special 1 | . . . . . . . . . . . . . . . 1 Average Slot Usage (%) 92 | . 98 100 100 100 87 95 98 97 78 94 96 92 77 90 88 Engine 7 | . 13 14 14 14 8 5 6 1 1 . . 2 5 5 2 Core 1 | . . . . . . 1 . 4 1 5 5 1 . 3 5 Treads 9 | . 11 28 28 28 32 1 . . . . . . . . . Leg 3 | . 16 . . . 3 . . . . . . . . . . Flight 17 | . . . . . . 28 30 29 26 33 33 31 35 33 33 Device 12 | . 12 14 14 14 12 9 20 10 4 5 5 14 11 12 5 Storage 5 | . 14 14 14 14 9 . . . . . . . . . . Processor 9 | . . . . . 3 17 15 15 17 18 23 14 5 5 5 Hackware 5 | . . . . . . 6 7 11 13 11 9 9 11 15 18 Protection 1 | . . . . . . 5 1 7 1 . . . . 1 2 Energy Gun 2 | . 10 . . . 3 . . . . . . . 4 . . Energy Cannon 8 | . 17 28 28 27 12 . . . 1 5 5 3 . . . Launcher 1 | . . . . . 1 6 4 5 1 . . . . . . Impact Weapon 1 | . . . . . . 4 7 1 . . . . . . . Slashing Weapon 1 | . . . . . . . . 3 2 5 5 4 . 4 4 Peak Build Rating 104 | . 9 8 11 18 27 53 51 56 89 100 97 104 90 99 103 Average Rating 43 | . 7 8 9 17 18 42 48 50 60 93 92 93 87 91 90 On Entrance 46 | 6 6 8 8 11 18 22 41 49 51 89 97 86 79 84 87 Avg Prop Armor Cover (%) 6 | . . . . . 10 . 15 2 4 . . . 4 2 . Naked Turns . | . . . . . . . . . . . . . . . . Heaviest Build 99 | 11 92 92 92 99 99 89 20 21 26 32 32 43 25 35 38 Greatest Support 80 | 20 40 40 40 40 80 80 18 23 36 36 54 57 45 50 38 Greatest Overweight (x) 6 | . 4 2 2 2 2 5 6 6 1 . 1 1 . . 2 Average Overweight (x) . | . 1 2 2 2 1 . 4 . . . . . . . . Largest Inventory Capacity 25 | . 25 25 25 25 25 25 5 5 5 5 5 5 5 5 5 Average Capacity 12 | . 20 25 25 25 25 6 5 5 5 5 5 5 5 5 5 Most Carried 25 | . 20 16 20 20 25 25 5 5 5 5 5 5 5 5 5 Average Carried 10 | . 14 16 17 20 23 5 4 4 4 4 5 4 4 4 4 Final Capacity 25 | 8 25 25 25 25 25 5 5 5 5 5 5 5 5 5 5 Final Carried 24 | 6 16 16 20 20 24 4 5 5 5 5 5 5 4 3 5 Class Distribution -------------------- 22% | Scavenger-Mutant 20% | Mutant 16% | Assassin 14% | Hacker-Scout 7% | Hacker-Sprinter 6% | Scout 4% | Sprinter 3% | Ninja Dominant Class ---------------- Mutant | -10/Materials Mutant | -10/Mines Mutant | -10/Exiles Mutant | -9/Mines Scavenger-Mutant | -8/Materials Sprinter | -7/Factory Assassin | -7/Waste Ninja | -7/Factory Hacker-Scout | -6/Factory Hacker-Scout | -5/Factory Hacker-Scout | -5/Waste Hacker-Scout | -5/Factory Hacker-Sprinter | -5/Upper Caves Hacker-Sprinter | -5/Upper Caves Hacker-Mutant | -5/Zhirov Resources | -11 -10 -10 -10 -9 -8 -7 -7 -7 -6 -5 -5 -5 -5 -5 -5 ----------- Run | Yrd Mat Min Exi Min Mat Fac Was Fac Fac Fac Was Fac Upp Upp Zhi Matter Collected 3424 | 200 187 . . 40 410 518 335 402 615 105 . 400 . 212 . Remotely . | . . . . . . . . . . . . . . . . Salvage Created 7299 | . 892 . . 111 1794 631 506 563 1217 254 . 1075 . 256 . Parts 364 | . 42 . . 12 75 20 9 41 84 14 . 53 . 14 . Haulers Intercepted 15 | . . . . . 5 2 . 2 2 . . 4 . . . Recyclers Shooed 8 | . 2 . . . 3 . . . 2 . . 1 . . . Parts Field Recycled . | . . . . . . . . . . . . . . . . Retrieved Matter . | . . . . . . . . . . . . . . . . Parts Self-Destructed 6 | . . . . . . . . . . . . . . 6 . Prevented 1 | . . . . . . . . . . . . . . 1 . Parts Restored . | . . . . . . . . . . . . . . . . Kills | -11 -10 -10 -10 -9 -8 -7 -7 -7 -6 -5 -5 -5 -5 -5 -5 ------- Run | Yrd Mat Min Exi Min Mat Fac Was Fac Fac Fac Was Fac Upp Upp Zhi Combat Hostiles Destroyed 110 | . 20 . . 6 35 9 . 4 20 1 . 11 . 4 . Melee 10 | . . . . . . . . 1 3 . . 5 . 1 . Guns 27 | . 15 . . . 10 2 . . . . . . . . . Cannons 25 | . 5 . . 2 7 4 . . 6 1 . . . . . AOE 48 | . . . . 4 18 3 . 3 11 . . 6 . 3 . Classes Destroyed 15 | . 7 . . 1 5 1 . . . . . . . 1 . Worker 17 | . 1 . . . 1 2 . 5 5 1 . 2 . . . Builder 10 | . 2 . . . 1 1 . 2 3 . . 1 . . . Tunneler 1 | . . . . . 1 . . . . . . . . . . Hauler 15 | . . . . . 5 2 . 2 2 . . 4 . . . Recycler 14 | . 1 . . . 6 1 . 3 1 1 . 1 . . . Mechanic 1 | . . . . . 1 . . . . . . . . . . Operator 8 | . 2 . . . 1 1 . 2 1 . . 1 . . . Watcher 14 | . 1 . . . 1 2 . 1 3 2 . 4 . . . Swarmer 47 | . 6 . . 4 10 . . 3 11 . . 9 . 4 . Grunt 39 | . 14 . . 1 16 3 . . 3 . . 2 . . . Brawler 2 | . . . . 1 1 . . . . . . . . . . Sentry 9 | . . . . . 7 1 . . . 1 . . . . . Hunter 4 | . . . . . 1 3 . . . . . . . . . Programmer 9 | . . . . . . 2 . 1 6 . . . . . . Decomposer 1 | . . . . . . . . . . . . . . 1 . Samaritan 3 | . . . . . . . . . . . . . . 3 . Best Kill Streak 12 | . 6 . . 6 12 5 . 7 7 3 . 6 . 4 . Combat Bots Only 9 | . 4 . . 6 9 2 . 3 5 1 . 5 . 4 . Max Kills in Single Turn 3 | . 1 . . 3 3 2 . 1 3 1 . 2 . 1 . Gunslinging . | . . . . . . . . . . . . . . . . Exploded 3 | . . . . 3 3 2 . 1 3 . . 2 . 1 . Melee 1 | . . . . . . . . 1 1 . . 1 . 1 . Uniques/NPCs Destroyed . | . . . . . . . . . . . . . . . . Combat | -11 -10 -10 -10 -9 -8 -7 -7 -7 -6 -5 -5 -5 -5 -5 -5 -------- Run | Yrd Mat Min Exi Min Mat Fac Was Fac Fac Fac Was Fac Upp Upp Zhi Hostile Shots Fired 873 | . 93 . . 5 225 123 . 48 204 1 2 62 12 25 73 Missed 378 | . 30 . . 3 77 64 . 31 102 1 1 25 7 14 23 Hits 495 | . 63 . . 2 148 59 . 17 102 . 1 37 5 11 50 Melee 3 | . . . . . . . . . . . 1 . . 2 . Projectile 492 | . 63 . . 2 148 59 . 17 102 . . 37 5 9 50 AOE 1 | . . . . . . 1 . . . . . . . . . Critical Strikes 13 | . . . . . 5 4 . 1 1 . 1 1 . . . Part Disruptions 6 | . . . . . . . . . . . . . . . 6 Actively Blocked 1 | . . . . . . . . . . . . . . . 1 Damage Taken 7088 | . 722 . . 17 2127 753 58 226 1584 . 44 680 92 167 618 Core 1926 | . 201 . . 10 241 200 38 19 842 . 44 137 . 35 159 Absorbed by Shields 53 | . . . . . . 53 . . . . . . . . . Redirected to Shielding 188 | . . . . . . . . . . . . . . . 188 Regen/Repaired (Parts) 544 | . 174 . . . . . . 220 35 42 . 73 . . . Core Remaining (%) 46 | 100 . . . 15 56 . . 63 . . . . . . . Volleys Fired 372 | . 82 . . 8 123 26 16 5 64 16 . 24 . 8 . Largest 2 | . 2 . . 1 2 1 1 1 1 1 . 1 . 1 . Hottest 128 | . 120 . . 120 128 120 25 120 120 120 . 120 . 50 . Shots Fired 549 | . 153 . . 8 218 30 18 7 64 16 . 23 3 9 . Gun 264 | . 133 . . . 104 4 16 . . . . . 3 4 . Cannon 210 | . 20 . . 6 87 16 . 2 47 16 . 16 . . . Launcher 70 | . . . . 2 27 10 2 5 12 . . 7 . 5 . Special 5 | . . . . . . . . . 5 . . . . . . Kinetic 20 | . . . . . . . 16 . . . . . . 4 . Thermal 454 | . 153 . . 6 191 20 . 2 47 16 . 16 3 . . Explosive 55 | . . . . 2 27 10 2 5 9 . . . . . . Electromagnetic 15 | . . . . . . . . . 3 . . 7 . 5 . Robot Hit Streak 15 | . 15 . . . 12 11 12 1 6 . . 14 2 1 . Robot Miss Streak 6 | . 6 . . . 3 . 2 2 3 . . . 1 1 . Penetration Max . | . . . . . . . . . . . . . . . . Secondary Targets 2 | . 1 . . . 1 . . . . . . . . . . Max Gunslinging Chain 1 | . 1 . . . 1 . . . . . . . . . . Autonomous 7 | . . . . . . 4 . . . . . . 3 . . Shots Hit Robots 391 | . 99 . . . 132 22 19 19 44 6 . 39 2 6 3 Core Hits 274 | . 44 . . 6 88 22 5 18 47 5 . 30 1 8 . Critical Kills . | . . . . . . . . . . . . . . . . Critical Parts Destroyed 6 | . . . . . . 3 2 1 . . . . . . . Critical Strikes 20 | . . . . . 2 3 3 4 2 . . 6 . . . Burn 2 | . . . . . 2 . . . . . . . . . . Smash 7 | . . . . . . 3 3 1 . . . . . . . Sever 8 | . . . . . . . . . 2 . . 6 . . . Impale 3 | . . . . . . . . 3 . . . . . . . Melee Attacks 228 | . . . . . . 29 7 29 53 12 . 88 . 7 3 Impact 32 | . . . . . . 23 7 2 . . . . . . . Slashing 148 | . . . . . . . . 17 21 12 . 88 . 7 3 Piercing 42 | . . . . . . . . 10 32 . . . . . . Sneak Attacks 54 | . . . . . . 10 . 13 13 3 . 10 . 4 1 Combat Hostiles 1 | . . . . . . . . . 1 . . . . . . Follow-up Attacks . | . . . . . . . . . . . . . . . . Damage Inflicted 19486 | . 1125 . . 345 4672 2452 952 1453 4063 865 . 2604 61 638 256 Guns 2858 | . 926 . . . 1520 122 208 . . . . . 61 21 . Cannons 4097 | . 177 . . 148 956 600 . 38 1377 491 . 310 . . . Explosions 4814 | . . . . 197 2164 751 . 167 949 . . 422 . 164 . Melee 7663 | . . . . . . 979 744 1248 1737 374 . 1872 . 453 256 Ramming 54 | . 22 . . . 32 . . . . . . . . . . Kinetic 229 | . . . . . . . 208 . . . . . . 21 . Thermal 6788 | . 1103 . . 148 2476 722 . 38 1377 491 . 372 61 . . Explosive 4062 | . . . . 197 2164 751 . 167 783 . . . . . . Electromagnetic 690 | . . . . . . . . . 166 . . 360 . 164 . Impact 1891 | . . . . . . 979 744 168 . . . . . . . Slashing 4471 | . . . . . . . . 566 950 374 . 1872 . 453 256 Piercing 1301 | . . . . . . . . 514 787 . . . . . . Highest Corruption 16 | . . . . . . 5 5 6 2 . 1 9 9 14 16 Average Corruption 5 | . . . . . . 2 5 5 1 . 1 4 9 12 14 Corruption Purged . | . . . . . . . . . . . . . . . . Corruption Blocked . | . . . . . . . . . . . . . . . . Effects 117 | . . . . . . 1 35 19 3 . . 35 6 15 3 Message Errors 33 | . . . . . . . 13 3 1 . . 9 1 6 . Matter Fused 19 | . . . . . . . 4 3 . . . 7 2 2 1 Heat Flow Errors 13 | . . . . . . . 4 3 . . . 6 . . . Energy Discharges 12 | . . . . . . . 1 4 1 . . 4 2 . . Parts Rejected 1 | . . . . . . 1 . . . . . . . . . Data Loss (minor) 19 | . . . . . . . 7 2 1 . . 5 1 2 1 Data Loss (major) 10 | . . . . . . . 4 2 . . . 2 . 1 1 Misfires 5 | . . . . . . . 2 2 . . . . . 1 . Alerts 1 | . . . . . . . . . . . . 1 . . . Misdirections 3 | . . . . . . . . . . . . . . 3 . Weapon Failures 1 | . . . . . . . . . . . . 1 . . . Overload Shots 2 | . . . . . . . . . 2 . . . . . . Overflow Damage 2118 | . . . . . 61 754 230 270 262 119 . 209 . 169 44 Projectiles 110 | . . . . . . . . . 102 . . 8 . . . Explosions 101 | . . . . . 61 22 . 17 . . . 1 . . . Melee 1907 | . . . . . . 732 230 253 160 119 . 200 . 169 44 Knockbacks 2 | . . . . . . 2 . . . . . . . . . Impact 2 | . . . . . . 2 . . . . . . . . . Kinetic . | . . . . . . . . . . . . . . . . Secondary . | . . . . . . . . . . . . . . . . Self-Inflicted Damage 255 | . . . . . 34 . 58 52 77 . . 11 . 23 . Shots 13 | . . . . . 2 . 2 1 3 . . 2 . 3 . Rammed 7 | . 1 . . . 6 . . . . . . . . . . Targets Rammed 9 | . 3 . . . 6 . . . . . . . . . . Kicked 2 | . 2 . . . . . . . . . . . . . . Crushed . | . . . . . . . . . . . . . . . . Highest Temperature 315 | . 90 . . 210 189 315 171 273 262 204 222 247 . 156 . Average Temperature 76 | . 16 . . 115 58 118 79 99 85 89 119 59 . 70 . Received Heat Transfer 1869 | . 276 . . . 945 75 . 24 315 . . 153 . 9 72 Effects 5 | . . . . . . 1 . . 4 . . . . . . Interference 4 | . . . . . . . . . 4 . . . . . . Damage (minor) 1 | . . . . . . 1 . . . . . . . . . Siege Activations . | . . . . . . . . . . . . . . . . Martial Activations . | . . . . . . . . . . . . . . . . Shielding Activations . | . . . . . . . . . . . . . . . . Robots Disrupted . | . . . . . . . . . . . . . . . . Combat Hostiles . | . . . . . . . . . . . . . . . . Robots Corrupted 8 | . . . . . . 5 2 1 . . . . . . . Combat Hostiles 1 | . . . . . . . 1 . . . . . . . . Parts Fried 13 | . . . . . . 8 . 3 . . . 2 . . . Impact Corruptions 28 | . . . . . . 19 4 5 . . . . . . . Robots Melted . | . . . . . . . . . . . . . . . . Combat Hostiles . | . . . . . . . . . . . . . . . . Parts Melted 27 | . 4 . . 1 17 1 . . 3 . . 1 . . . Heat Transferred 13831 | . 2495 . . 320 4921 1231 . 80 2720 1120 . 870 74 . . Parts Sabotaged . | . . . . . . . . . . . . . . . . Parts Stolen 2 | . . . . . . . . . . . . . . 2 . Parts Stripped . | . . . . . . . . . . . . . . . . Power Chain Reactions 1 | . . . . . . . . . . . . 1 . . . Alert | -11 -10 -10 -10 -9 -8 -7 -7 -7 -6 -5 -5 -5 -5 -5 -5 ------- Run | Yrd Mat Min Exi Min Mat Fac Was Fac Fac Fac Was Fac Upp Upp Zhi Maximum Alert Level 3 | . . . . . 3 2 1 1 3 2 . 1 . . . Low Security (%) 64 | . 100 100 . 100 60 . 95 96 3 . 100 88 . . . Level 1 14 | . . . . . 6 39 4 3 42 47 . 11 . . . Level 2 13 | . . . . . 15 60 . . 29 52 . . . . . Level 3 6 | . . . . . 16 . . . 24 . . . . . . Level 4 . | . . . . . . . . . . . . . . . . Level 5 . | . . . . . . . . . . . . . . . . High Security . | . . . . . . . . . . . . . . . . Max Security . | . . . . . . . . . . . . . . . . Peak Influence 1085 | . 151 15 . 148 891 661 231 264 1085 502 106 353 . . . Initial 499 | . . 15 . . . 403 231 . 128 499 106 67 . . . Average 202 | . 56 1 . 44 247 421 33 58 524 389 102 97 . . . Influence Increases 6368 | . 608 . . 158 1322 799 4 539 1903 120 . 735 . 180 . Destroy 0b10 Robot/C 2200 | . 400 . . 120 700 180 . 80 400 20 . 220 . 80 . Destroy 0b10 Robot/NC 400 | . 35 . . . 85 45 . 75 75 20 . 65 . . . Destroy Leader 508 | . 92 . . 20 172 48 . 16 100 14 . 36 . 10 . Allied During Kill 1 | . . . . . . 1 . . . . . . . . . Successful Hack 285 | . 21 . . . 44 102 . 26 38 17 . 37 . . . Select Force Hacks 50 | . 30 . . . . . . . 20 . . . . . . Disable Machine 285 | . . . . . 60 30 . 30 135 15 . 15 . . . Destroy Structure 479 | . . . . 18 171 48 4 42 70 4 . 122 . . . Partial Spotted 315 | . . . . . . 60 . 45 120 . . 90 . . . Lose Combat Pursuer 1845 | . 30 . . . 90 285 . 225 945 30 . 150 . 90 . Influence Decreases 6368 | . 568 40 . 158 435 1026 664 275 1146 836 209 488 237 181 105 Entered New Map 2077 | . . 25 . . . 484 429 . 136 522 199 29 127 21 105 Time Decay 3411 | . 558 15 . 158 315 392 235 255 610 214 . 409 100 150 . Search Patrol Dispatched 400 | . . . . . . . . . 300 100 . . . . . Lost Part 370 | . 10 . . . 120 40 . 20 100 . 10 50 10 10 . Lost Ally 110 | . . . . . . 110 . . . . . . . . . Squads Dispatched 53 | . 5 . . . 5 12 . 5 14 1 . 11 . . . Investigation 14 | . 3 . . . 1 5 . 1 2 1 . 1 . . . Extermination 17 | . . . . . . 3 . 2 7 . . 5 . . . Reinforcement 18 | . 2 . . . 3 1 . 2 5 . . 5 . . . Assault 1 | . . . . . 1 . . . . . . . . . . Garrison 3 | . . . . . . 3 . . . . . . . . . Intercept . | . . . . . . . . . . . . . . . . Searches Triggered 4 | . . . . . . . . . 3 1 . . . . . Construction Impeded 4 | . . . . . 2 . . . 1 . . 1 . . . Haulers Reinforced 5 | . . . . . . . . . 3 . . 2 . . . Active Scanning Responses . | . . . . . . . . . . . . . . . . Cargo Convoy Interrupts 1 | . . . . . . 1 . . . . . . . . . Stealth | -11 -10 -10 -10 -9 -8 -7 -7 -7 -6 -5 -5 -5 -5 -5 -5 --------- Run | Yrd Mat Min Exi Min Mat Fac Was Fac Fac Fac Was Fac Upp Upp Zhi Distress Signals 18 | . 3 . . . 7 1 . 4 3 . . . . . . Communications Jammed 7 | . . . . . . 7 . . . . . . . . . Distress Signals 7 | . . . . . . 7 . . . . . . . . . Times Spotted 296 | . 32 . . 5 60 43 . 29 75 3 5 24 1 16 3 Peak Tracking Total 11 | . 4 . . 4 11 10 . 8 11 2 5 5 1 7 3 Tactical Retreats 58 | . 2 . . . 4 12 . 8 23 1 . 6 . 2 . Traps | -11 -10 -10 -10 -9 -8 -7 -7 -7 -6 -5 -5 -5 -5 -5 -5 ------- Run | Yrd Mat Min Exi Min Mat Fac Was Fac Fac Fac Was Fac Upp Upp Zhi Traps Triggered 19 | . 3 . . . . 7 . . 5 1 . 3 . . . Indirectly . | . . . . . . . . . . . . . . . . Trap Hack Attempts . | . . . . . . . . . . . . . . . . Triggered . | . . . . . . . . . . . . . . . . Disarmed . | . . . . . . . . . . . . . . . . Reprogrammed . | . . . . . . . . . . . . . . . . Reused . | . . . . . . . . . . . . . . . . Traps Extracted . | . . . . . . . . . . . . . . . . Installed . | . . . . . . . . . . . . . . . . Triggered . | . . . . . . . . . . . . . . . . Machines | -11 -10 -10 -10 -9 -8 -7 -7 -7 -6 -5 -5 -5 -5 -5 -5 ---------- Run | Yrd Mat Min Exi Min Mat Fac Was Fac Fac Fac Was Fac Upp Upp Zhi Machines Disabled 19 | . . . . . 4 2 . 2 9 1 . 1 . . . Max in Single Turn 2 | . . . . . 2 1 . 1 2 1 . 1 . . . Garrison Access 1 | . . . . . . . . . . 1 . . . . . Machines Repaired . | . . . . . . . . . . . . . . . . Machines Dismantled . | . . . . . . . . . . . . . . . . Machines Sabotaged . | . . . . . . . . . . . . . . . . Overloaded Fab Kills . | . . . . . . . . . . . . . . . . Hacking | -11 -10 -10 -10 -9 -8 -7 -7 -7 -6 -5 -5 -5 -5 -5 -5 --------- Run | Yrd Mat Min Exi Min Mat Fac Was Fac Fac Fac Was Fac Upp Upp Zhi Machines Accessed 81 | . 7 . 2 . 9 15 . 10 14 7 . 11 . 2 4 Terminals 38 | . 5 . . . 7 9 . 4 4 3 . 5 . 1 . Fabricators 10 | . . . . . . 3 . 1 2 1 . 3 . . . Repair Stations 8 | . 1 . . . . . . 3 1 1 . 2 . . . Recycling Units 9 | . 1 . . . . 1 . 2 4 . . 1 . . . Scanalyzers 5 | . . . . . 2 1 . . 1 1 . . . . . Garrison Access 4 | . . . . . . 1 . . 2 1 . . . . . Total Hacks 232 | . 21 . 5 . 36 41 . 29 33 23 . 25 . 2 17 Successful 136 | . 16 . 5 . 19 13 . 19 17 17 . 11 . 2 17 Failed 96 | . 5 . . . 17 28 . 10 16 6 . 14 . . . Catastrophic 8 | . . . . . . 5 . 1 2 . . . . . . Database Lockouts . | . . . . . . . . . . . . . . . . Manual 82 | . 14 . 1 . 20 21 . 7 4 7 . 8 . . . Terminals 112 | . 13 . . . 30 28 . 11 8 9 . 12 . 1 . Fabricators 27 | . . . . . . 10 . 2 6 1 . 8 . . . Repair Stations 27 | . 6 . . . . . . 11 2 4 . 4 . . . Recycling Units 14 | . 2 . . . . 1 . 5 5 . . 1 . . . Scanalyzers 21 | . . . . . 6 1 . . 6 8 . . . . . Garrison Access 8 | . . . . . . 1 . . 6 1 . . . . . Terminal Hacks 44 | . . . 5 . 7 4 . 3 2 . . 4 . 2 17 Record 10 | . . . 4 . . . . . . . . . . 1 5 Part Schematic 6 | . . . . . . 2 . . . . . . . . 4 Robot Schematic 1 | . . . . . . . . . 1 . . . . . . Robot Analysis 4 | . . . . . . . . . . . . . . . 4 Prototype ID Bank 5 | . . . . . . . . 1 . . . . . . 4 Open Door 1 | . . . . . . . . . . . . . . 1 . Branch Access Points 1 | . . . . . . . . . . . . 1 . . . Emergency Access Points 1 | . . . . . 1 . . . . . . . . . . Recycling Unit Index 1 | . . . . . 1 . . . . . . . . . . Scanalyzer Index 1 | . . . . . . . . . . . . 1 . . . Alert Level 6 | . . . . . 3 1 . 1 . . . 1 . . . Locate Traps 2 | . . . . . 1 . . . . . . 1 . . . Investigation Status 1 | . . . . . . . . . 1 . . . . . . Hauler Manifests 1 | . . . . . 1 . . . . . . . . . . Zone Layout 2 | . . . . . . 1 . 1 . . . . . . . Proto ID Catalog 1 | . . . 1 . . . . . . . . . . . . Fabricator Hacks 12 | . . . . . . 4 . 1 3 . . 4 . . . Network Status 4 | . . . . . . 1 . 1 1 . . 1 . . . Load Schematic 4 | . . . . . . 1 . . 1 . . 2 . . . Build 4 | . . . . . . 2 . . 1 . . 1 . . . Repair Station Hacks 23 | . 6 . . . . . . 9 2 4 . 2 . . . Scan Component 12 | . 3 . . . . . . 5 1 2 . 1 . . . Repair 11 | . 3 . . . . . . 4 1 2 . 1 . . . Recycling Unit Hacks 8 | . . . . . . . . 3 5 . . . . . . Retrieve Components 8 | . . . . . . . . 3 5 . . . . . . Scanalyzer 15 | . . . . . 4 . . . 3 8 . . . . . Insert Component 5 | . . . . . 2 . . . 1 2 . . . . . Analyze 9 | . . . . . 2 . . . 1 6 . . . . . Retrieve Study 1 | . . . . . . . . . 1 . . . . . . Garrison Access Hacks 1 | . . . . . . . . . . 1 . . . . . Seal Access 1 | . . . . . . . . . . 1 . . . . . Unauthorized Hacks 33 | . 10 . . . 8 5 . 3 2 4 . 1 . . . Terminals 24 | . 9 . . . 8 2 . 2 . 3 . . . . . Assimilate 1 | . . . . . . 1 . . . . . . . . . Botnet 11 | . 4 . . . 4 . . 1 . 2 . . . . . Operators 3 | . . . . . . 1 . 1 . 1 . . . . . Skim 9 | . 5 . . . 4 . . . . . . . . . . Fabricators 7 | . . . . . . 2 . 1 2 1 . 1 . . . Prioritize 2 | . . . . . . 1 . . 1 . . . . . . Liberate 2 | . . . . . . 1 . . . 1 . . . . . Download 1 | . . . . . . . . . 1 . . . . . . Recompile 2 | . . . . . . . . 1 . . . 1 . . . Repair Stations . | . . . . . . . . . . . . . . . . Recycling Units 1 | . 1 . . . . . . . . . . . . . . Tunnel 1 | . 1 . . . . . . . . . . . . . . Scanalyzers . | . . . . . . . . . . . . . . . . Garrison Access 1 | . . . . . . 1 . . . . . . . . . Reprogram 1 | . . . . . . 1 . . . . . . . . . Data Cores Recovered 4 | . 1 . . . . . . 1 1 . . 1 . . . Used 1 | . . . . . . . . . 1 . . . . . . Hacking Detections 57 | . 4 . . . 8 12 . 8 11 6 . 8 . . . Full Trace Events 6 | . . . . . 2 2 . . 1 1 . . . . . Feedback Events . | . . . . . . . . . . . . . . . . Feedback Blocked . | . . . . . . . . . . . . . . . . Robot Schematics Acquired 1 | . . . . . . . . . 1 . . . . . . Robots Built 4 | . . . . . . 4 . . . . . . . . . Authchips . | . . . . . . . . . . . . . . . . Time 134 | . . . . . . 134 . . . . . . . . . Total Robot Build Rating 16 | . . . . . . 16 . . . . . . . . . Part Schematics Acquired 11 | . . . . . 2 2 . . 2 1 . . . . 4 Parts Built 4 | . . . . . . 2 . . 1 . . 1 . . . Authchips 2 | . . . . . . . . . 1 . . 1 . . . Time 142 | . . . . . . 42 . . 33 . . 67 . . . Total Part Build Rating 16 | . . . . . . 8 . . 4 . . 4 . . . Part Studies Acquired 1 | . . . . . . . . . 1 . . . . . . Parts Repaired 10 | . 3 . . . . . . 3 1 2 . 1 . . . Time 665 | . 78 . . . . . . 248 76 160 . 103 . . . Parts Recycled . | . . . . . . . . . . . . . . . . Recycled Matter . | . . . . . . . . . . . . . . . . Retrieved Matter . | . . . . . . . . . . . . . . . . Retrieved Components 19 | . . . . . . . . 8 11 . . . . . . Parts Scanalyzed 5 | . . . . . 2 . . . 1 2 . . . . . Part Schematics Acquired 4 | . . . . . 2 . . . 1 1 . . . . . Parts Damaged . | . . . . . . . . . . . . . . . . Bothacking | -11 -10 -10 -10 -9 -8 -7 -7 -7 -6 -5 -5 -5 -5 -5 -5 ------------ Run | Yrd Mat Min Exi Min Mat Fac Was Fac Fac Fac Was Fac Upp Upp Zhi Used RIF Installer . | . . . . . . . . . . . . . . . . Robots Hacked 6 | . . . . . . 2 . . 4 . . . . . . Non-combat 6 | . . . . . . 2 . . 4 . . . . . . Combat . | . . . . . . . . . . . . . . . . Robot Hacks Applied 6 | . . . . . . 2 . . 4 . . . . . . find_chute 3 | . . . . . . 1 . . 2 . . . . . . find_fabricator 1 | . . . . . . . . . 1 . . . . . . find_recycling 2 | . . . . . . 1 . . 1 . . . . . . Relay Couplers Released . | . . . . . . . . . . . . . . . . Fabnet Peak Effective % . | . . . . . . . . . . . . . . . . Robots Rewired . | . . . . . . . . . . . . . . . . Allies Hacked . | . . . . . . . . . . . . . . . . Hacks Repelled . | . . . . . . . . . . . . . . . . Allies | -11 -10 -10 -10 -9 -8 -7 -7 -7 -6 -5 -5 -5 -5 -5 -5 -------- Run | Yrd Mat Min Exi Min Mat Fac Was Fac Fac Fac Was Fac Upp Upp Zhi Total Allies 7 | . . . . . . 6 . . . . 1 . . . . Largest Group 5 | . . . . . . 5 . . . . 1 . . . . Highest-Rated Group 57 | . . . . . . 57 . . . . 31 . . . . Highest-Rated Ally 31 | . . . . . . 12 . . . . 31 . . . . Total Orders . | . . . . . . . . . . . . . . . . Ally Attacks 12 | . . . . . . 9 . . . . 3 . . . . Total Damage 152 | . . . . . . 110 . . . . 42 . . . . Kills . | . . . . . . . . . . . . . . . . Allies Corrupted . | . . . . . . . . . . . . . . . . Allies Melted . | . . . . . . . . . . . . . . . . Intel | -11 -10 -10 -10 -9 -8 -7 -7 -7 -6 -5 -5 -5 -5 -5 -5 ------- Run | Yrd Mat Min Exi Min Mat Fac Was Fac Fac Fac Was Fac Upp Upp Zhi Active Infowar (turns) 8190 | . . . . . 944 933 1655 816 1771 440 19 1612 . . . Sensors 6028 | . . . . . . 295 1655 657 1362 440 19 1600 . . . IFF 2 | . . . . . . . . . . . . 2 . . . Terrain 60 | . . . . . . . . . 60 . . . . . . T.N.C. 7696 | . . . . . 944 933 1655 816 1281 436 19 1612 . . . Machine Analysis 324 | . . . . . . . . . . 135 19 170 . . . Jamming 279 | . . . . . . 194 . 85 . . . . . . . Robot Analysis Total 4 | . . . . . . . . . . . . . . . 4 Derelict Logs Recovered 7 | . . 1 . 2 . . . . . . . . 2 2 . Drone Launches . | . . . . . . . . . . . . . . . . Drone Recoveries . | . . . . . . . . . . . . . . . . Exploration | -11 -10 -10 -10 -9 -8 -7 -7 -7 -6 -5 -5 -5 -5 -5 -5 ------------- Run | Yrd Mat Min Exi Min Mat Fac Was Fac Fac Fac Was Fac Upp Upp Zhi Turns Passed 13994 | . 2256 212 717 567 2191 933 1655 818 1995 440 19 1617 208 307 59 Spaces Moved 14442 | 1 724 67 224 170 688 2278 597 1274 3425 765 73 2561 422 1028 145 Core 671 | . . . . . . . 574 9 88 . . . . . . Treads 1418 | . 255 67 224 170 688 14 . . . . . . . . . Legs 470 | 1 469 . . . . . . . . . . . . . . Wheels . | . . . . . . . . . . . . . . . . Hover . | . . . . . . . . . . . . . . . . Flight 11883 | . . . . . . 2264 23 1265 3337 765 73 2561 422 1028 145 Fastest Speed 5 | 120 120 320 320 320 240 26 27 24 20 20 5 5 20 6 23 Average Speed 69 | 120 244 320 320 320 253 28 262 35 30 20 18 30 26 23 23 Slowest Speed 400 | 120 400 320 320 320 320 302 350 350 106 20 105 101 29 29 23 Overloaded Moves 197 | . . . . . . . . 14 54 . 37 67 . 25 . Propulsion Burnouts . | . . . . . . . . . . . . . . . . Robots Hopped 88 | . . . . . . 15 . 3 45 2 4 18 . 1 . Potential Cave-ins 2 | . . . . . . . . . . . . 2 . . . Cave-ins Triggered . | . . . . . . . . . . . . . . . . Exploration Rate (%) 52 | 1 91 14 60 45 56 54 97 32 47 15 62 45 54 97 62 Regions Visited 15 Branch Regions 6 Pre-discovered Areas 8 | . 3 . 1 . . . . . . . . . 1 . 3 Known Exits Taken 7 | . 1 . . . 1 . . 1 1 . . 1 1 1 . Unknown Exits Taken 4 | 1 . 1 1 1 . . . . . . . . . . . Scrap Searched 4 | . . . . 1 . . . . . . . . . 3 . Spaces Dug 106 | . . . . . . 18 . 10 22 2 . 54 . . . Terrain Destroyed 451 | . . . . 26 186 55 5 40 73 2 . 62 1 1 . Melee 91 | . . . . . . 13 . 9 16 2 . 51 . . . Projectile 22 | . . . . 2 1 . . 1 9 . . 7 1 1 . AOE 338 | . . . . 24 185 42 5 30 48 . . 4 . . . Terrain Rammed . | . . . . . . . . . . . . . . . . Walls Destroyed . | . . . . . . . . . . . . . . . . Machines Disabled . | . . . . . . . . . . . . . . . . Actions | -11 -10 -10 -10 -9 -8 -7 -7 -7 -6 -5 -5 -5 -5 -5 -5 --------- Run | Yrd Mat Min Exi Min Mat Fac Was Fac Fac Fac Was Fac Upp Upp Zhi Total 17389 | . 1051 66 226 186 906 2472 656 1578 4188 1016 73 3223 516 1069 163 Wait 1905 | . 199 . . 7 23 55 18 224 604 204 3 472 91 5 . Move 14265 | . 723 66 223 169 687 2248 596 1268 3340 761 67 2526 421 1025 145 Hop 76 | . . . . . . 15 . 2 39 2 1 16 . 1 . Pick Up 73 | . 12 . 3 . 16 8 3 2 9 4 1 7 1 5 2 Fast Attach 67 | . 5 . . . 6 5 2 7 20 6 . 8 1 4 3 Attach 60 | . 3 . . . 10 16 1 1 14 3 . 7 1 3 1 Detach 20 | . 1 . . . . 3 . 1 10 2 . 2 . . 1 Swap 129 | . 12 . . 2 23 20 6 26 18 1 . 13 . 5 3 Drop 108 | . 11 . . . 12 25 2 13 17 5 1 15 1 6 . Fire 372 | . 82 . . 8 123 26 16 5 64 16 . 24 . 8 . Melee 228 | . . . . . . 29 7 29 53 12 . 88 . 7 3 Ram . | . . . . . . . . . . . . . . . . Kick 2 | . 2 . . . . . . . . . . . . . . Crush 7 | . 1 . . . 6 . . . . . . . . . . Escape Stasis 72 | . . . . . . 22 . . . . . 45 . . 5 Rewire 5 | . . . . . . . 5 . . . . . . . . Trap . | . . . . . . . . . . . . . . . . Miscellaneous . | . . . . . . . . . . . . . . . . Route ------- -11/Scrapyard -10/Materials (discovered 5 exits: *Mat x3 / *Min / *Sub) -10/Mines -10/Exiles (discovered 2 exits: [*Min x2]) -9/Mines -8/Materials (discovered 3 exits: *Fac x3) -7/Factory -7/Waste -7/Factory (discovered 3 exits: *Fac x2 / *Low) -6/Factory (discovered 2 exits: *Fac / *Low) -5/Factory -5/Waste -5/Factory (discovered 3 exits: *Fac / *Upp x2) -5/Upper Caves -5/Upper Caves (discovered 2 exits: *Fac / *Zhi) -5/Zhirov (discovered 1 exit: [*Pro]) History --------- Turn | Location | Event 1 | -11/Scrapyard | Discovered new exit (range 0) 1 | -11/Scrapyard | Entered Materials 233 | -10/Materials | Discovered new exit (range 15) 300 | -10/Materials | Build established: Mutant 656 | -10/Materials | Repaired Sml. Laser 677 | -10/Materials | Build established: Scavenger-Mutant 683 | -10/Materials | Repaired Sml. Laser 711 | -10/Materials | Repaired Ion Engine 742 | -10/Materials | Core integrity fell below 50% 1123 | -10/Materials | Discovered new exit (range 9) 1430 | -10/Materials | Discovered new exit (range 8) 1576 | -10/Materials | Core integrity fell below 20% 1626 | -10/Materials | Build established: Mutant 1681 | -10/Materials | Discovered new exit (range 16) 1845 | -10/Materials | Learned 2 Mines zone layouts 1870 | -10/Materials | Discovered new exit (range 9) 1915 | -10/Materials | Learned location of 1 exit from Recycling 2114 | -10/Materials | Learned location of 2 exits from Materials 2143 | -10/Materials | Identified exit to Materials 2143 | -10/Materials | Identified exit to Subcaves 2143 | -10/Materials | Identified exit to Mines 2181 | -10/Materials | Learned 2 Storage zone layouts 2228 | -10/Materials | Learned location of 3 exits from Materials 2257 | -10/Materials | Entered Mines 2267 | -10/Mines | Learned Materials emergency access door positions 2453 | -10/Mines | Deemed a non-threat by the Exiles lab entrance 2456 | -10/Mines | Discovered new exit (range 5) 2469 | -10/Mines | Entered Exiles 2511 | -10/Exiles | Discovered new exit (range 15) 2556 | -10/Exiles | Met 8R-AWN 2601 | -10/Exiles | Met EX-HEX 2693 | -10/Exiles | Met EX-BIN 2729 | -10/Exiles | Aligned with FarCom system 2732 | -10/Exiles | Given EX-Vault access code 2805 | -10/Exiles | Opened EX-Vault 2825 | -10/Exiles | Found Gui. Plasma Cannon 2838 | -10/Exiles | Found Modified TNC 2852 | -10/Exiles | Found AWS/Thermal 2911 | -10/Exiles | Warned to stay clear of 0b10 Research branches 3023 | -10/Exiles | Met EX-DEC 3068 | -10/Exiles | Learned location of Zion (-6) 3160 | -10/Exiles | Discovered new exit (range 10) 3186 | -10/Exiles | Stole three prototypes: Modified TNC, AWS/Thermal, Gui. Plasma Cannon 3186 | -10/Exiles | Entered Mines 3450 | -9/Mines | Learned 4 Materials zone layouts 3482 | -9/Mines | Learned Materials emergency access door positions 3644 | -9/Mines | Discovered new exit (range 12) 3753 | -9/Mines | Entered Materials 3753 | -8/Materials | Evolved 4 slots: Propulsion x2, Utility x2 3754 | -8/Materials | Identified exit to Factory 4046 | -8/Materials | Build established: Scavenger-Mutant 5236 | -8/Materials | Destroyed 9 combat bots 5237 | -8/Materials | Lost 8 parts (2p1n3u2w) 5753 | -8/Materials | First assault squad dispatched 5944 | -8/Materials | Entered Factory 5944 | -7/Factory | Evolved 2 slots: Utility x2 5946 | -7/Factory | FarCom data flow suspended 6260 | -7/Factory | Fabricated S-27 Virus? 6509 | -7/Factory | Discovered new exit (range 16) 6513 | -7/Factory | Identified exit to Lower Caves 6536 | -7/Factory | Fabricated Transmission Jammer (x2) 6715 | -7/Factory | Cargo convoy interrupted 6877 | -7/Factory | Sucked down chute 6877 | -7/Factory | Entered Waste 6877 | -7/Waste | The area was eerily silent 7115 | -7/Waste | Discovered new exit (range 15) 7178 | -7/Waste | Build established: Assassin 8528 | -7/Waste | Identified exit to Factory 8532 | -7/Waste | Entered Factory 8650 | -7/Factory | Repaired Broken Lgt. Angular Momentum Engine 8755 | -7/Factory | Discovered exit to Lower Caves (range 6) 8987 | -7/Factory | Repaired Cld. Particle Cannon 9090 | -7/Factory | Discovered new exit (range 15) 9178 | -7/Factory | Repaired Mni. Grenade Launcher 9348 | -7/Factory | Discovered new exit (range 4) 9349 | -7/Factory | Identified exit to Factory 9350 | -7/Factory | Entered another Factory area 9350 | -6/Factory | Evolved 2 slots: Propulsion x2 9532 | -6/Factory | Build established: Hacker-Sprinter 9594 | -6/Factory | Repaired Broken Imp. VTOL Module? 9859 | -6/Factory | Discovered new exit (range 12) 9862 | -6/Factory | Identified exit to Lower Caves 9890 | -6/Factory | Fabricated Cld. VTOL Module? 10050 | -6/Factory | Search patrols dispatched 10065 | -6/Factory | Lost 5 parts (1p2n1u1w) 10400 | -6/Factory | Search patrols dispatched 10526 | -6/Factory | Core integrity fell below 50% 10674 | -6/Factory | Core integrity fell below 20% 10891 | -6/Factory | Discovered new exit (range 2) 10891 | -6/Factory | Identified exit to Factory 11100 | -6/Factory | Search patrols dispatched 11148 | -6/Factory | Build established: Hacker-Scout 11345 | -6/Factory | Entered another Factory area 11345 | -5/Factory | Evolved 2 slots: Power x1, Utility x1 11461 | -5/Factory | Repaired Gui. EMP Blaster 11542 | -5/Factory | Repaired Cld. Cesium-ion Thruster 11645 | -5/Factory | Search patrols dispatched 11648 | -5/Factory | Discovered new exit (range 5) 11649 | -5/Factory | Identified exit to Upper Caves 11785 | -5/Factory | Sucked down chute 11785 | -5/Factory | Entered Waste 11786 | -5/Waste | Met a frightened Derelict 11791 | -5/Waste | Spotted C-40 Crusher 11794 | -5/Waste | Spotted C-40 Crusher 11794 | -5/Waste | Spotted C-40 Crusher 11794 | -5/Waste | Spotted C-40 Crusher 11796 | -5/Waste | Spotted C-40 Crusher 11797 | -5/Waste | Crushed by Compactor (1 part destroyed, 1 dropped) 11800 | -5/Waste | EMP discharged 11801 | -5/Waste | Discovered new exit (range 15) 11803 | -5/Waste | Identified exit to Factory 11804 | -5/Waste | Entered Factory 12071 | -5/Factory | Build established: Assassin 12263 | -5/Factory | Repaired Broken Lgt. Quantum Reactor 12518 | -5/Factory | Fabricated Cld. VTOL Module? 12578 | -5/Factory | Build established: Scout 12882 | -5/Factory | Discovered new exit (range 13) 12893 | -5/Factory | Identified exit to Factory 13003 | -5/Factory | Build established: Hacker-Scout 13421 | -5/Factory | Entered Upper Caves 13424 | -5/Upper Caves | Identified exit to Upper Caves 13428 | -5/Upper Caves | Encountered a Warlord checkpoint 13447 | -5/Upper Caves | Lost 4 parts (1p2u1w) 13583 | -5/Upper Caves | Learned location of Armory (-3) 13629 | -5/Upper Caves | Entered another Upper Caves area 13638 | -5/Upper Caves | Learned Factory emergency access door positions 13643 | -5/Upper Caves | Learned Factory non-interactive machine intel 13675 | -5/Upper Caves | Encountered a Warlord checkpoint 13706 | -5/Upper Caves | System corruption reached 10% 13711 | -5/Upper Caves | Discovered exit to Factory (range 8) 13717 | -5/Upper Caves | Found DCF Scrap (15 items) 13752 | -5/Upper Caves | Build established: Hacker-Sprinter 13903 | -5/Upper Caves | Encountered a Master Thief 13903 | -5/Upper Caves | Encountered a Master Thief 13904 | -5/Upper Caves | Encountered a Master Thief 13904 | -5/Upper Caves | Encountered a Master Thief 13905 | -5/Upper Caves | AWS/Thermal stolen by Master Thief 13907 | -5/Upper Caves | Encountered a Master Thief 13907 | -5/Upper Caves | Discovered new exit (range 10) 13929 | -5/Upper Caves | Adv. Reaction Control System stolen by Master Thief 13935 | -5/Upper Caves | Identified exit to Zhirov 13936 | -5/Upper Caves | Entered Zhirov 13936 | -5/Zhirov | Discovered new exit (range 3) 13941 | -5/Zhirov | Met Zhirov 13946 | -5/Zhirov | Learned location of Quarantine (-3) 13946 | -5/Zhirov | Learned location of Testing (-2) 13946 | -5/Zhirov | Learned location of Command (-1) 13950 | -5/Zhirov | Zhirov requested help retrieving the SGEMP Prototype 13953 | -5/Zhirov | Found Alien Artifact 13953 | -5/Zhirov | Identified Integrated Reactor 13953 | -5/Zhirov | Installed Integrated Reactor, increased core energy generation (+10) 13958 | -5/Zhirov | Found Alien Artifact 13982 | -5/Zhirov | Attacked by Zhirov 13995 | -5/Zhirov | Self-destructed Last Messages --------------- 13958_ Acquired Alien Artifact. 13962_ Acquired Prototype Protection. 13962_ Identified Exp. Power Shielding. 13963_ Acquired Adv. Hacking Suite. 13966_ Acquired Prototype Reactor. 13966_ Identified Hvy. Antimatter Reactor. 13972_ Acquired F-cell Engine. 13981_ Zhirov uses his terminal. 13982_ Sneak attack on Svarog. 13982_ Zhirov: "We're under attack!" 13983_ Mak. Flight Unit destroyed. 13983_ Held in stasis. 13989_ Mak. Hacking Suite destroyed. 13989_ Cld. Cesium-ion Thruster destroyed. 13990_ System corrupted: Component data lost. 13990_ Destroyed Unknown Energy Cannon. 13991_ Held in stasis. 13992_ Exp. Power Shielding destroyed. 13993_ Cld. Cesium-ion Thruster destroyed. 13994_ Fission Core destroyed. Map ----- +----------------------------------------------------+ | | | | | | | | | | | ?????????????????????????????????????????????? | | ?????????????????????????????????????????????? | | ?????????????????????????????????????????????? | | ?????????????????????????????????????????????? | | ?????????????????????????????????????????????? | | ?????????????????????????????????????????????? | | ?????????????????????????????????????????????? | | ?????????????????????????????????????????????? | | ?????????????????????????????????????????????? | | ???????????????????????????#""#??????????????? | | ??????????????????????????##""##?????????????? | | ????????????????????###??##""""##????????????? | | ????????????######### ##?#""""""#??????#####?? | | ????????????#""""""" P #?# """" #?????## ### | | ????#######?#" " ### ##?#### < # | | ????#"X"X"#?#" 1 ### | | ????#X X#?#" | | ????#" "#### | | ????#"" ###### ## | | ????#####+#### ### ##????#######? | | ????????# #?#"" @ #?# """" #????????????? | | ????##### #?##" ####S##?#""""""#????????????? | | ????# + #??#" #??###??##""""##????????????? | | ????# ###??## #????????##""##?????????????? | | ????#XXX#?????# #?????????#""#??????????????? | | ????#####?????# #???????????????????????????? | | ???????######## ########????????????????????? | | ???????#"X # # """"#????????????????????? | | ???????#" # # """"#????????????????????? | | ???????#"" # # """#????????????????????? | | ???????#"" + + ""#????????????????????? | | ???????#"" ""# # """#????????????????????? | | ???????#"""""# # """"#????????????????????? | | ???????#"""""# #X""""#????????????????????? | | ???????########++########????????????????????? | | ???????#" """"#????????????????????? | | ???????#"" "#????????????????????? | | ???????#" " " " " "#????????????????????? | | ???????# " " " " ="#????????????????????? | | ???????# " " " "=="#????????????????????? | | ???????##################????????????????????? | | ?????????????????????????????????????????????? | | ?????????????????????????????????????????????? | | ?????????????????????????????????????????????? | | ?????????????????????????????????????????????? | +----------------------------------------------------+ Best States ------------- Heat Dissipation 71 Energy Generation 48 Energy Capacity 710 Matter Stores 300 Matter Capacity 300 Sight Range 16 Robot Scan Range 16 Terrain Scan Range 16 Terrain Scan Density 10 Jamming Range 12 Additional Mass Support 9 Corruption Containment 8 Armor Coverage 150 Power Shielding 90 Phase Shifting 5 Evasion (%) 77 Recoil Reduction 4 Energy Filtering 30 Salvage Targeting 2 Offensive Hacking 37 Defensive Hacking 12 Authchip Count 1 Item Schematics ----------------- Imp. VTOL Module | -8/Materials | Scanalyzed System Shield | -8/Materials | Scanalyzed Imp. Recalibrator | -7/Factory | Hacked Transmission Jammer | -7/Factory | Hacked Cld. VTOL Module | -6/Factory | Scanalyzed Adv. Surge Thruster | -6/Factory | Downloaded Gui. EMP Blaster | -5/Factory | Scanalyzed Assault Drone Bay | -5/Zhirov | Free Exp. Heat Sink | -5/Zhirov | Free Exp. Optical Array | -5/Zhirov | Free Imp. Arc Thrower | -5/Zhirov | Free Robot Schematics ------------------ H-66 Slayer | -6/Factory | Hacked Fabricated ------------ S-27 Virus | x4 | -7/Factory | Preloaded Transmission Jammer | x2 | -7/Factory Cld. VTOL Module | x1 | -6/Factory | Authchip Cld. VTOL Module | x1 | -5/Factory | Authchip Repaired ---------- Sml. Laser | 14% | -10/Materials Sml. Laser | 11% | -10/Materials Ion Engine | 13% | -10/Materials Lgt. Angular Momentum Engine | 16% | -7/Factory | Broken Cld. Particle Cannon | 7% | -7/Factory Mni. Grenade Launcher | 56% | -7/Factory Imp. VTOL Module | 30% | -6/Factory | Broken Gui. EMP Blaster | 70% | -5/Factory Cld. Cesium-ion Thruster | 77% | -5/Factory Lgt. Quantum Reactor | 8% | -5/Factory | Broken Studied --------- Mic. Nuclear Core | -6/Factory | Hacked Alien Tech Used ----------------- Integrated Reactor Achievements -------------- None Challenges ------------ None Game ------ Seed DecoderMicroBlaster Manual? 0 Play Time 02:44:51 Cumulative 223.7 hours Start 2025.12.22 @ 13:23:41 End 2025.12.22 @ 22:17:45 Sessions 5 Manual Loads 0 Difficulty Rogue Special Mode None Game No. 302 Rogue 301 Adventurer 1 Explorer 0 Win Type - Total 2 Types 1/0/0/1/0/0/0/0/0/0 Lore% 67 Gallery% 62 Achievement% 55 Wizard Run 0 Options --------- Layout 0 ASCII 0 Keyboard 0 Movement Numpad Keybinds 0 Fullscreen 1 Font 24/Smallcaps Map View 76x50 Zoom Use 0% Tactical HUD 1 Map Filters NONE Filters NONE Steam 1 RUN: 199251a1-bbf6-487e-b2f1-e86ee248341c